bitfinex/quotes_ETHUSD_20260203
["timestamp","ask_amount","ask_price","bid_price","bid_amount"]
[1770134349924,4.33200485,2308.5,2307.0,0.02173488]
[1770134350744,1.99194237,2308.6,2307.0,12.67974425]
[1770134350947,1.99194237,2308.6,2307.2,0.02173488]
[1770134351126,0.0011,2308.8,2307.6,0.02173488]
[1770134351817,0.0011,2308.8,2307.7,1.08332972]
[1770134352024,0.0011,2308.8,2307.8,0.54383835]
[1770134352738,0.0011,2308.8,2307.6,1.08334213]
[1770134353127,0.02283488,2308.8,2307.6,1.08334213]
[1770134353529,12.65890401,2308.6,2307.3,0.909]
[1770134353850,1.10473609,2308.4,2307.3,0.909]
[1770134354017,0.02173488,2308.1,2306.9,1.08370313]
[1770134354224,12.63716913,2308.1,2306.4,4.33571827]
[1770134354453,12.63716913,2308.1,2305.8,4.35947706]
[1770134354454,0.02173488,2307.6,2305.8,0.001]
[1770134354746,0.02173488,2307.6,2306.2,1.08400942]
[1770134354747,0.02173488,2307.4,2306.2,1.08400942]
[1770134354933,0.12413488,2307.8,2306.1,1.08405447]
[1770134355135,0.1024,2307.8,2306.1,1.08405447]
[1770134355546,12.65890401,2307.6,2306.1,1.08405447]
[1770134355720,0.02173488,2307.5,2306.1,1.08405447]
[1770134355920,0.02173488,2307.5,2305.9,4.33632539]
[1770134355921,1.08342361,2307.5,2305.9,4.33632539]
[1770134356151,1.08342361,2307.5,2306.0,0.54215478]
[1770134356471,1.08328278,2307.9,2306.1,0.02173488]
[1770134356650,1.17935223,2308.6,2306.3,12.91331455]
[1770134356947,1.0839154,2308.8,2307.1,0.02173488]
[1770134357120,0.0011,2308.8,2307.2,13.56700937]
[1770134357323,0.0011,2308.8,2307.3,1.38060931]
[1770134357324,1.08392113,2308.8,2307.3,1.38060931]
[1770134357548,1.08392113,2308.8,2307.3,1.35887443]
[1770134357749,1.08392113,2308.8,2307.2,0.909]
[1770134358071,0.0011,2308.8,2307.3,1.08351753]
[1770134358722,0.0011,2308.8,2307.3,1.10525241]
[1770134359847,0.0011,2307.6,2307.3,1.10525241]
[1770134360034,0.0011,2307.8,2307.3,1.10525241]
[1770134360361,0.0011,2308.8,2307.4,0.63700574]
[1770134361064,0.02173488,2308.6,2307.4,0.63700574]
[1770134361258,0.02173488,2308.5,2307.3,1.08351753]
[1770134361425,0.12523488,2308.8,2307.3,1.08351753]
[1770134361622,0.02173488,2308.1,2306.5,4.33557158]
[1770134361821,0.02173488,2308.1,2306.0,4.87966699]
[1770134361822,0.02173488,2307.4,2306.0,4.87966699]
[1770134362023,0.02173488,2307.0,2306.0,0.001]
[1770134362259,0.02173488,2306.8,2306.0,0.001]
[1770134362470,0.92973488,2307.1,2306.0,0.001]
[1770134362666,0.02173488,2307.0,2306.0,0.001]
[1770134362848,0.02173488,2306.9,2306.0,0.001]
[1770134363228,0.02173488,2306.8,2306.0,0.001]
[1770134363427,0.02173488,2306.7,2305.8,0.001]
[1770134363763,0.1024,2307.0,2305.8,1.08520432]
[1770134363931,0.1024,2306.8,2305.8,0.001]
[1770134364131,0.66690619,2306.8,2305.8,0.001]
[1770134364368,0.02173488,2306.3,2305.6,0.001]
[1770134364675,0.1024,2306.1,2304.8,0.001]
[1770134364841,0.12413488,2306.7,2305.4,1.08438025]
[1770134365160,0.1024,2306.8,2305.5,1.08432401]
[1770134365362,0.02173488,2306.7,2305.3,1.08442982]
[1770134365683,0.12413488,2306.8,2305.5,1.08434805]
[1770134365848,0.77354805,2306.8,2305.5,1.08434805]
[1770134366159,1.08379936,2306.7,2305.2,0.02173488]
[1770134368270,1.08379936,2306.7,2305.3,1.08445755]
[1770134369164,5.08694601,2306.8,2305.4,0.909]
[1770134369165,1.08377965,2306.8,2305.4,0.909]
[1770134369534,4.33419511,2307.3,2305.6,0.02173488]
[1770134369769,0.54177126,2307.2,2305.6,0.02173488]
[1770134370175,1.08361146,2307.1,2305.7,1.08426941]
[1770134371671,1.15761735,2308.5,2306.6,0.02173488]
[1770134371871,0.32924647,2308.5,2306.9,0.02173488]
[1770134372234,0.32924647,2308.5,2307.0,1.08365843]
[1770134372235,1.08300121,2308.4,2307.0,1.08365843]
[1770134372466,11.82743649,2308.3,2306.9,1.0836777]
[1770134372680,11.80570161,2308.3,2306.9,1.0836777]
[1770134372837,11.80570161,2308.3,2307.0,0.54186596]
[1770134373178,1.08300121,2308.4,2307.0,0.54186596]
[1770134373388,0.02173488,2308.1,2307.0,0.54186596]
[1770134373677,0.0011,2307.6,2306.9,1.0837036]
[1770134374233,0.0011,2307.6,2306.4,1.08394033]
[1770134374578,0.0011,2307.6,2306.4,1.10567521]
[1770134374735,0.0011,2307.6,2306.5,0.02173488]
[1770134376034,0.0011,2307.6,2306.4,1.10567521]
[1770134376241,0.0011,2307.6,2306.6,1.08384635]
[1770134377169,0.0011,2307.8,2306.6,12.8855925]
[1770134377377,0.0011,2307.8,2306.8,0.02173488]
[1770134377583,0.0011,2307.8,2306.9,0.909]
[1770134378436,0.0011,2307.8,2306.9,1.99267361]
[1770134380164,0.0011,2307.8,2306.8,1.08371833]
[1770134380370,0.0011,2307.8,2306.6,1.08384635]
[1770134380570,0.0011,2307.8,2306.1,0.02173488]
[1770134380571,11.80570161,2307.6,2306.1,1.08405424]
[1770134380744,0.02173488,2307.3,2306.0,1.08412037]
[1770134381065,0.02173488,2306.9,2305.9,0.001]
[1770134381263,12.71470161,2307.1,2305.9,0.001]
[1770134381444,0.909,2307.1,2306.2,1.08402195]
[1770134381650,0.909,2307.1,2305.9,0.001]
[1770134381971,12.71470161,2307.1,2305.9,0.001]
[1770134382171,11.82743649,2306.9,2305.9,0.001]
[1770134382335,1.08375238,2306.8,2305.9,0.001]
[1770134384844,1.08375238,2306.8,2305.6,0.001]
[1770134384845,0.02173488,2306.4,2305.6,0.001]
[1770134385044,0.93073488,2306.3,2304.8,0.001]
[1770134385253,0.02173488,2306.1,2304.8,0.001]
[1770134385595,0.02173488,2306.1,2304.6,0.001]
[1770134385596,0.02173488,2305.4,2304.6,0.001]
[1770134385893,0.02173488,2304.8,2303.5,0.73643377]
[1770134386043,0.02173488,2304.7,2303.5,0.73643377]
[1770134386481,0.02173488,2304.7,2303.4,0.001]
[1770134386482,0.02173488,2304.6,2303.4,0.001]
[1770134386694,0.93073488,2304.5,2303.4,0.001]
[1770134386873,0.909,2304.5,2303.4,0.001]
[1770134387491,1.08473987,2304.7,2303.8,0.001]
[1770134388374,4.33895951,2304.8,2303.8,0.001]
[1770134388570,4.33895951,2304.9,2303.8,0.001]
[1770134388771,1.08464575,2304.9,2303.8,0.001]
[1770134388977,1.08426941,2305.7,2303.8,0.001]
[1770134389192,0.909,2305.4,2303.8,0.001]
[1770134390599,1.10619243,2305.3,2303.8,0.001]
[1770134390902,12.08612985,2306.0,2304.2,0.02173488]
[1770134391091,1.08417537,2305.9,2304.4,0.02173488]
[1770134391925,13.1920401,2305.9,2304.0,0.02173488]
[1770134392091,0.02173488,2305.7,2303.9,0.909]
[1770134392279,12.21026473,2305.8,2303.9,0.909]
[1770134392480,12.21026473,2305.8,2304.0,1.08506944]
[1770134392481,1.08426941,2305.7,2304.0,1.08506944]
[1770134392913,1.08426941,2305.7,2304.1,12.63992209]
[1770134393410,1.08426941,2305.7,2304.2,11.90808619]
[1770134393719,1.08426941,2305.7,2304.2,0.02173488]
[1770134393879,0.54213471,2305.6,2304.1,0.02173488]
[1770134394313,1.08426941,2305.7,2304.3,11.90808619]
[1770134394519,4.33654978,2306.0,2304.4,1.08488109]
[1770134395520,4.33629404,2306.2,2304.4,12.99296728]
[1770134395724,1.08403434,2306.2,2304.7,11.90808619]
[1770134396018,1.08403434,2306.2,2304.8,0.909]
[1770134396214,1.08403434,2306.2,2304.9,1.28170862]
[1770134396585,1.08403434,2306.2,2305.0,1.08459869]
[1770134397149,1.08403434,2306.2,2304.9,2.36632492]
[1770134397420,1.08403434,2306.2,2304.9,1.0846163]
[1770134397591,1.10576922,2306.2,2304.8,1.9936568]
[1770134397796,1.10576922,2306.2,2304.9,1.08463394]
[1770134398197,1.08403434,2306.2,2304.9,1.08463394]
[1770134398399,0.02173488,2306.1,2304.8,1.99367164]
[1770134398598,1.08412836,2306.0,2304.8,0.909]
[1770134398820,12.89613423,2306.0,2304.8,1.99368774]
[1770134398992,1.08412836,2306.0,2304.8,1.99368774]
[1770134399709,1.08522836,2306.0,2304.8,1.99368774]
[1770134400226,1.08522836,2306.0,2304.8,1.08468774]
[1770134400703,0.54434767,2305.9,2304.8,1.08468774]
[1770134401588,0.0011,2306.0,2304.8,1.08468774]
[1770134401788,11.81310587,2306.0,2304.8,1.08468774]
[1770134402033,0.02173488,2305.9,2304.7,0.4354]
[1770134402195,0.02173488,2305.7,2304.3,0.001]
[1770134402388,0.0011,2306.0,2304.3,12.43535131]
[1770134402822,0.02173488,2305.8,2304.3,0.549]
[1770134403020,0.02173488,2305.6,2304.3,0.549]
[1770134403198,0.02283488,2306.0,2304.5,0.02173488]
[1770134403199,0.0011,2306.0,2304.5,0.02173488]
[1770134403403,11.81310587,2306.0,2304.3,0.549]
[1770134403622,11.83374075,2305.5,2304.3,0.001]
[1770134403809,11.81200587,2305.0,2304.3,0.001]
[1770134404012,11.81200587,2305.0,2304.0,0.001]
[1770134404224,0.30091545,2305.4,2304.3,1.0849238]
[1770134404819,1.38534094,2305.4,2304.2,12.79535131]
[1770134405125,11.91440587,2305.3,2304.0,0.001]
[1770134405329,11.83374075,2305.1,2304.0,0.001]
[1770134405534,11.81200587,2305.1,2304.0,0.001]
[1770134405919,1.0114,2305.3,2304.0,0.001]
[1770134406145,11.83374075,2305.2,2304.0,0.001]
[1770134406444,11.81200587,2305.2,2304.0,0.001]
[1770134406838,11.83374075,2305.0,2304.0,0.001]
[1770134407137,11.81200587,2304.9,2304.0,0.001]
[1770134407655,4.35994146,2305.2,2304.0,0.001]
[1770134407656,1.08453906,2305.2,2304.0,0.001]
[1770134408325,0.02173488,2305.1,2304.0,0.001]
[1770134408535,11.83374075,2305.1,2304.0,0.001]
[1770134408722,1.08459869,2305.0,2304.0,0.001]
[1770134409112,0.1024,2304.9,2304.0,0.001]
[1770134410046,0.02173488,2304.3,2303.4,0.001]
[1770134410350,1.0114,2304.2,2303.1,1.4786476]
[1770134410520,0.909,2304.2,2303.1,1.4786476]
[1770134410711,0.1024,2304.1,2303.1,1.4786476]
[1770134410911,1.08506944,2304.0,2303.1,1.4786476]
[1770134411346,0.12413488,2303.9,2303.1,1.4786476]
[1770134411542,0.1024,2303.9,2303.1,1.4786476]
[1770134411747,0.65517472,2303.9,2303.1,1.4786476]
[1770134412343,0.6769096,2303.9,2303.1,1.4786476]
[1770134412849,1.08521074,2303.7,2303.3,0.001]
[1770134413062,0.02173488,2303.4,2301.8,1.08708197]
[1770134413263,0.02173488,2303.1,2301.8,1.08708197]
[1770134413445,0.02173488,2303.1,2301.9,0.54315081]
[1770134413446,0.02173488,2303.0,2301.9,0.54315081]
[1770134413756,0.02173488,2302.8,2301.8,0.001]
[1770134413962,0.02173488,2302.8,2302.1,0.001]
[1770134413963,0.02173488,2302.6,2302.1,0.001]
[1770134414251,0.91,2302.6,2301.8,0.001]
[1770134414427,0.93173488,2302.6,2301.6,0.001]
[1770134414639,0.12413488,2302.9,2301.6,0.001]
[1770134414841,0.5745096,2303.9,2301.8,11.88635131]
[1770134415027,5.24985386,2303.8,2302.0,0.25530518]
[1770134415231,0.1024,2303.7,2302.2,0.02173488]
[1770134415424,11.91440587,2303.7,2302.1,0.91]
[1770134415640,11.93614075,2303.7,2302.1,0.91]
[1770134415825,11.91440587,2303.7,2302.1,0.91]
[1770134416025,0.55277472,2303.6,2302.1,0.91]
[1770134416768,0.55277472,2303.6,2302.1,12.79635131]
[1770134416968,1.08506944,2304.0,2302.4,11.88635131]
[1770134417178,0.02173488,2303.8,2302.2,1.08591781]
[1770134417480,11.83374075,2303.6,2302.1,1.99593678]
[1770134417693,11.81200587,2303.6,2302.1,1.99593678]
[1770134417977,11.81200587,2303.6,2302.2,0.6339915]
[1770134418164,0.02173488,2303.4,2302.1,1.9959519]
[1770134418466,0.12413488,2303.2,2301.9,1.0860298]
[1770134418669,0.1024,2303.2,2302.1,1.08595518]
[1770134418979,1.08544633,2303.2,2301.9,1.08605934]
[1770134419272,1.08544633,2303.2,2302.0,1.7316648]
[1770134419474,1.08544633,2303.2,2301.6,0.02273488]
[1770134419475,11.93614075,2302.9,2301.6,0.001]
[1770134419672,0.02173488,2302.5,2301.6,0.001]
[1770134419978,0.91,2302.5,2301.6,0.001]
[1770134420158,0.1024,2302.8,2301.7,1.08614292]
[1770134420370,0.91,2302.7,2301.8,1.08610278]
[1770134420564,0.91,2302.7,2301.7,1.08615089]
[1770134420802,0.02173488,2302.5,2301.6,0.001]
[1770134420941,0.1024,2302.9,2301.6,0.001]
[1770134421146,1.08563487,2302.8,2301.6,0.001]
[1770134421340,16.47515977,2303.2,2301.6,0.001]
[1770134421341,1.99535856,2303.4,2301.8,12.25949607]
[1770134421649,2.6290227,2303.4,2301.9,13.48544568]
[1770134422481,2.6290227,2303.4,2301.9,1.22594961]
[1770134422482,14.78412488,2303.4,2301.9,1.22594961]
[1770134422653,2.6290227,2303.4,2301.6,13.17049607]
[1770134423062,2.6290227,2303.4,2301.7,1.08615371]
[1770134423379,2.65075758,2303.4,2301.7,1.08615371]
[1770134423747,2.6290227,2303.4,2301.7,1.08615371]
[1770134423947,2.6290227,2303.4,2301.7,13.34564978]
[1770134424156,14.78412488,2303.4,2301.8,1.86012646]
[1770134424355,0.02173488,2303.3,2301.8,1.86012646]
[1770134424557,0.02173488,2303.3,2301.7,1.08615371]
[1770134424558,0.02173488,2303.2,2301.7,1.08615371]
[1770134424760,14.76239,2303.4,2301.7,1.08615371]
[1770134425074,0.1024,2303.0,2301.6,1.9971767]
[1770134425251,0.12413488,2302.8,2301.6,0.911]
[1770134425457,0.1024,2302.6,2301.6,1.08719826]
[1770134425652,0.1024,2302.6,2301.6,1.63063282]
[1770134425884,0.1024,2302.6,2301.6,0.54443456]
[1770134426052,12.25750218,2302.6,2301.6,0.001]
[1770134426249,12.2357673,2302.6,2301.6,0.001]
[1770134426984,0.02173488,2302.5,2301.6,0.001]
[1770134427282,1.08582348,2302.4,2301.6,0.001]
[1770134428290,1.63897522,2302.4,2301.6,0.001]
[1770134428654,2.05312431,2303.4,2301.6,0.001]
[1770134428655,1.08561226,2302.9,2301.6,12.26049607]
[1770134429067,1.08549346,2303.2,2301.8,13.34560259]
[1770134429267,12.15510218,2303.8,2301.9,12.28123095]
[1770134429486,0.12413488,2303.7,2302.0,1.33890724]
[1770134429781,0.02173488,2303.7,2302.0,1.33890724]
[1770134430080,12.15510218,2303.8,2302.0,13.59840331]
[1770134430283,0.02173488,2303.7,2302.0,13.59840331]
[1770134430479,0.12413488,2303.7,2302.0,13.59840331]
[1770134430690,0.12413488,2303.7,2301.8,1.1078414]
[1770134430691,0.02173488,2303.5,2302.1,1.36201382]
[1770134430852,0.1024,2303.5,2301.8,13.34560259]
[1770134431051,1.08535208,2303.4,2301.8,13.34560259]
[1770134431880,0.1024,2303.3,2301.8,1.08610652]
[1770134432100,0.02173488,2303.1,2301.7,1.99612625]
[1770134432379,0.1024,2302.9,2301.7,1.99612558]
[1770134432585,0.12413488,2302.9,2301.7,1.08615012]
[1770134432782,13.06510218,2303.0,2301.8,1.08608896]
[1770134432783,0.91,2303.0,2301.8,1.08608896]
[1770134432985,0.02173488,2302.9,2301.6,1.08716469]
[1770134433186,1.08563487,2302.8,2301.6,0.001]
[1770134433876,1.10736975,2302.8,2301.6,0.001]
[1770134434053,0.54716441,2302.7,2301.6,0.001]
[1770134434254,0.02173488,2302.5,2301.6,0.001]
[1770134434451,0.02173488,2302.3,2301.5,0.001]
[1770134434682,0.02173488,2302.1,2301.4,0.001]
[1770134435154,1.08601216,2302.0,2301.4,0.001]
[1770134435485,0.02173488,2301.8,2300.7,0.001]
[1770134435663,0.02173488,2301.6,2300.7,0.001]
[1770134435856,0.1024,2301.8,2300.7,0.001]
[1770134436054,1.45517957,2301.9,2300.7,0.001]
[1770134436395,0.1024,2301.8,2300.7,0.001]
[1770134436607,0.1024,2301.8,2300.7,0.5468273]
[1770134437257,1.08615371,2301.7,2300.8,1.08657858]
[1770134437902,4.34367127,2302.3,2300.8,1.08657858]
[1770134438159,1.08591781,2302.2,2301.5,0.001]
[1770134438887,1.08582348,2302.4,2301.5,0.001]
[1770134439183,1.08591781,2302.2,2301.5,0.001]
[1770134439695,1.08591781,2302.2,2300.9,1.08652192]
[1770134440065,0.12413488,2302.1,2300.7,1.08758371]
[1770134440372,0.911,2302.0,2300.9,1.08652144]
[1770134441163,1.08605934,2301.9,2300.7,0.001]
[1770134441364,0.64435854,2301.9,2300.7,0.001]
[1770134441684,1.9970295,2302.0,2300.7,12.26049607]
[1770134442309,0.1024,2301.9,2300.7,12.26049607]
[1770134442805,0.1024,2301.9,2300.7,0.001]
[1770134442966,1.9970295,2302.0,2300.7,12.26049607]
[1770134442967,1.99702782,2302.0,2300.7,12.26049607]
[1770134443170,1.99702782,2302.0,2300.9,1.08653135]
[1770134443378,0.911,2302.0,2300.9,1.08653135]
[1770134443590,1.08589136,2302.3,2301.0,13.17049607]
[1770134443796,2.24388795,2302.8,2301.0,13.17049607]
[1770134444007,1.08565766,2302.8,2301.3,0.02173488]
[1770134444186,0.54281363,2302.7,2301.3,1.25420495]
[1770134444690,12.67618093,2302.7,2301.3,1.23247007]
[1770134444892,0.54281363,2302.7,2301.3,12.25949607]
[1770134445099,0.0011,2303.2,2302.0,0.02173488]
[1770134445279,0.0011,2303.2,2302.2,1.10765269]
[1770134445698,0.0011,2303.2,2302.1,0.911]
[1770134446114,0.0011,2303.2,2302.2,13.36714876]
[1770134446427,0.0011,2303.2,2302.3,1.88391688]
[1770134446581,0.0011,2303.2,2302.3,1.862182]
[1770134446776,0.0011,2303.2,2301.9,0.02173488]
[1770134446976,0.0011,2303.2,2301.9,1.08605064]
[1770134447176,1.08554059,2303.0,2301.8,0.911]
[1770134447377,12.15510218,2302.7,2300.9,0.78916338]
[1770134447586,0.12413488,2302.6,2301.3,1.08633411]
[1770134447814,0.12413488,2302.6,2300.9,1.70016338]
[1770134447815,12.2357673,2302.6,2300.9,1.70016338]
[1770134448125,0.02173488,2302.0,2300.7,1.08760087]
[1770134448293,0.1024,2301.9,2300.7,0.001]
[1770134448612,0.1024,2301.9,2300.6,0.001]
[1770134448613,0.02173488,2301.5,2300.6,0.001]
[1770134448777,0.02173488,2301.4,2300.6,0.001]
[1770134448983,1.28236517,2301.5,2300.6,0.001]
[1770134449208,1.08629529,2301.4,2300.6,0.001]
[1770134450110,0.1024,2301.3,2300.5,0.001]
[1770134450285,0.66013462,2301.3,2300.5,0.001]
[1770134450479,0.1024,2301.1,2300.5,0.001]
[1770134451388,1.08648413,2301.0,2300.5,0.001]
[1770134452185,1.08645843,2301.1,2300.5,0.001]
[1770134453306,1.63074296,2301.1,2300.5,0.001]
[1770134454541,0.54428453,2301.1,2300.5,0.001]
[1770134455421,1.08648413,2301.0,2300.5,0.001]
[1770134455600,0.12413488,2301.4,2300.5,0.001]
[1770134455601,1.1887425,2301.3,2300.5,0.001]
[1770134455795,1.0863425,2301.3,2300.5,0.001]
[1770134457444,4.34531071,2301.4,2300.5,0.001]
[1770134457949,0.911,2301.7,2300.5,0.001]
[1770134458309,1.08712849,2302.0,2300.5,12.66650375]
[1770134458514,1.08715553,2302.0,2300.8,0.02173488]
[1770134458813,0.0011,2302.0,2300.9,0.2335703]
[1770134459027,0.0011,2302.0,2300.9,0.911]
[1770134459227,4.34491133,2302.2,2301.2,0.02173488]
[1770134459228,1.08701946,2302.2,2301.2,0.02173488]
[1770134459432,0.0011,2302.2,2301.2,1.0863897]
[1770134459635,0.0011,2302.2,2301.1,1.08640997]
[1770134461417,0.0011,2302.2,2301.1,1.10814485]
[1770134461616,12.15696007,2302.1,2300.5,0.001]
[1770134461831,0.02173488,2301.6,2300.5,0.001]
[1770134462032,0.02173488,2301.5,2300.5,0.001]
[1770134462236,0.02173488,2301.2,2299.9,1.08697438]
[1770134462550,0.1024,2301.1,2300.0,1.08695262]
[1770134463127,0.1024,2301.1,2300.7,0.001]
[1770134463555,1.08648413,2301.0,2299.8,0.001]
[1770134463757,0.55348207,2300.9,2299.8,0.001]
[1770134465455,1.08648413,2301.0,2299.8,1.08805104]
[1770134465961,0.1024,2300.9,2299.6,1.0881454]
[1770134466483,0.12413488,2300.6,2299.5,0.001]
[1770134466777,0.02173488,2300.0,2299.1,0.001]
[1770134466941,0.911,2299.9,2299.1,0.001]
[1770134467569,1.08705104,2299.8,2299.1,0.001]
[1770134467758,1.99803346,2299.9,2299.1,0.001]
[1770134467987,0.911,2300.3,2299.1,0.001]
[1770134468168,4.36861599,2300.7,2299.1,0.001]
[1770134468169,1.08657858,2300.8,2299.5,0.02173488]
[1770134468341,1.08657858,2300.8,2299.4,0.02173488]
[1770134468538,4.34623647,2300.9,2299.5,0.02173488]
[1770134468539,1.0865449,2300.9,2299.5,0.02173488]
[1770134468850,1.56637931,2301.6,2300.1,0.02173488]
[1770134468851,1.0862009,2301.6,2300.1,0.02173488]
[1770134469054,1.0862009,2301.6,2300.3,0.02173488]
[1770134469251,0.54310045,2301.5,2300.1,0.911]
[1770134469450,0.12413488,2301.4,2299.6,0.02173488]
[1770134469657,0.1024,2301.1,2299.7,1.08709831]
[1770134469842,1.0863897,2301.2,2299.7,1.08709831]
[1770134470161,0.1024,2301.3,2299.9,0.02173488]
[1770134470344,0.71009825,2301.3,2299.7,1.08709831]
[1770134471642,12.25936007,2301.1,2299.6,1.99811803]
[1770134471865,0.1024,2300.9,2299.6,0.911]
[1770134472407,0.1024,2300.9,2299.6,1.08712979]
[1770134472713,0.1024,2300.9,2299.6,1.10886467]
[1770134472875,0.1024,2300.9,2299.7,0.54792043]
[1770134473766,1.0863897,2301.2,2300.0,0.02173488]
[1770134474195,1.0863897,2301.2,2299.7,2.54597973]
[1770134474569,1.0863897,2301.2,2299.7,2.56771461]
[1770134474769,1.0863897,2301.2,2299.8,0.69379885]
[1770134475094,0.1024,2301.1,2299.8,0.69379885]
[1770134475593,0.0011,2300.8,2300.1,0.02173488]
[1770134475787,1.08605934,2301.9,2300.8,1.08657858]
[1770134475969,0.70482988,2301.9,2300.9,0.54546278]
[1770134476586,1.08711554,2302.0,2301.0,0.02173488]
[1770134476787,0.0011,2302.0,2301.2,0.02173488]
[1770134476990,0.0011,2302.0,2301.1,0.02173488]
[1770134477370,0.0011,2302.0,2301.2,0.02173488]
[1770134477701,1.08713574,2302.0,2300.9,0.54546278]
[1770134477867,0.54311844,2301.9,2300.9,1.63196315]
[1770134478073,0.911,2301.9,2300.5,1.08669211]
[1770134478302,0.911,2301.9,2300.4,1.0867379]
[1770134478485,0.02173488,2301.6,2300.2,1.9978277]
[1770134478685,0.1024,2301.7,2300.5,1.08670968]
[1770134478996,0.1024,2301.7,2300.2,0.911]
[1770134479301,0.02173488,2301.6,2300.2,0.911]
[1770134479517,0.02173488,2301.6,2300.3,1.08679348]
[1770134479690,0.1024,2301.7,2300.3,1.08679348]
[1770134480009,1.10793578,2301.6,2300.2,0.911]
[1770134480416,1.10793578,2301.6,2300.2,1.99785797]
[1770134480789,1.0862009,2301.6,2300.2,1.99785797]
[1770134481103,1.0862009,2301.6,2300.3,0.66741518]
[1770134481484,1.0862009,2301.6,2300.3,0.63453992]
[1770134481781,4.44688384,2301.8,2300.4,1.10850239]
[1770134482710,4.44688384,2301.8,2300.4,1.08676751]
[1770134482879,0.64439904,2301.7,2300.4,1.08676751]
[1770134483482,0.64439904,2301.7,2300.3,1.72132199]
[1770134483817,0.1024,2301.2,2300.2,0.911]
[1770134484033,0.12413488,2301.2,2299.7,0.54792043]
[1770134484179,0.93273488,2301.1,2299.8,1.08702957]
[1770134484377,0.911,2301.1,2300.0,1.08692308]
[1770134484720,0.911,2301.1,2300.2,1.08684118]
[1770134485020,0.911,2301.1,2300.1,1.08690462]
[1770134485376,0.911,2301.1,2299.9,1.08697837]
[1770134485579,0.911,2301.1,2300.0,0.54351604]
[1770134485788,1.08643692,2301.1,2300.0,1.63045207]
[1770134485999,4.44814768,2301.3,2300.0,1.63045207]
[1770134486000,0.1024,2301.3,2300.0,1.63045207]
[1770134486183,1.08621728,2301.6,2300.5,0.02173488]
[1770134486496,1.15933029,2302.0,2300.8,0.02173488]
[1770134486497,1.08605934,2301.9,2300.8,0.02173488]
[1770134486700,0.0011,2302.0,2301.1,0.02173488]
[1770134486909,0.0011,2302.0,2301.3,0.02173488]
[1770134487810,0.0011,2302.0,2301.1,1.08643692]
[1770134488005,0.0011,2302.0,2301.0,1.08645434]
[1770134488211,0.0011,2301.8,2301.1,0.5432476]
[1770134488417,0.0011,2301.8,2301.0,1.08647744]
[1770134488601,0.0011,2301.8,2300.9,1.0865132]
[1770134488802,0.0011,2301.8,2300.6,0.02173488]
[1770134489015,0.0011,2301.8,2300.8,1.08654422]
[1770134489405,0.1035,2301.8,2300.6,1.08666741]
[1770134489600,0.1035,2301.8,2300.5,1.08668581]
[1770134489802,1.08615371,2301.7,2300.4,0.001]
[1770134490320,0.1024,2301.6,2300.4,0.001]
[1770134490701,1.08615371,2301.7,2300.5,0.02173488]
[1770134490901,1.08615371,2301.7,2300.4,0.001]
[1770134491794,1.08624809,2301.5,2300.4,0.001]
[1770134492024,0.54529754,2301.4,2300.4,0.001]
[1770134493928,1.0863425,2301.3,2300.4,0.001]
[1770134496603,1.08615371,2301.7,2300.6,0.02173488]
[1770134497011,1.08615371,2301.7,2300.5,0.02173488]
[1770134497216,1.08615371,2301.7,2300.4,0.001]
[1770134497923,4.34571484,2301.8,2300.4,0.001]
[1770134498804,4.34571484,2301.8,2300.4,0.02273488]
[1770134499348,0.0011,2301.8,2300.7,0.02173488]
[1770134499925,0.0011,2301.8,2300.8,1.08657858]
[1770134500139,0.0011,2301.8,2300.7,4.3680492]
[1770134500140,0.0011,2301.8,2300.9,0.54546278]
[1770134500322,0.0011,2301.8,2300.5,1.08669362]
[1770134500529,0.0011,2301.8,2300.7,1.08661452]
[1770134500730,0.0011,2301.6,2300.7,1.08661452]
[1770134500916,0.0011,2301.6,2300.6,0.001]
[1770134501102,0.1035,2301.6,2300.6,0.001]
[1770134501307,0.02173488,2301.5,2300.6,0.001]
[1770134501547,0.1024,2301.4,2300.6,0.001]
[1770134501927,1.0863425,2301.3,2300.6,0.001]
[1770134504436,2.24457279,2301.3,2300.6,0.001]
[1770134505017,1.0863425,2301.3,2300.6,0.001]
[1770134508242,2.24457279,2301.3,2300.6,0.001]
[1770134508449,0.66923428,2301.2,2300.6,0.001]
[1770134509834,1.15823029,2301.4,2300.6,0.001]
[1770134510046,1.99832044,2301.6,2300.6,0.001]
[1770134510247,3.15655073,2301.6,2300.6,0.001]
[1770134511018,1.15823029,2301.5,2300.6,0.001]
[1770134511320,0.1024,2301.4,2300.6,0.001]
[1770134511524,0.58275952,2301.4,2300.6,0.001]
[1770134511722,0.0011,2301.6,2300.7,0.02173488]
[1770134511926,0.0011,2301.8,2300.8,11.87833892]
[1770134512150,0.0011,2301.8,2301.0,0.02173488]
[1770134512316,0.0011,2301.8,2300.9,1.08652783]
[1770134512519,0.0011,2301.8,2301.0,1.08647892]
[1770134513055,0.0011,2301.8,2301.1,0.54325912]
[1770134514256,0.0011,2301.6,2301.2,1.0863897]
[1770134515023,0.0011,2301.8,2301.2,1.0863897]
[1770134515222,0.0011,2301.8,2301.1,0.54325912]
[1770134515421,0.0011,2301.8,2301.1,1.08643277]
[1770134515941,0.0011,2301.8,2301.1,1.08643308]
[1770134516317,0.0011,2302.0,2301.1,0.02173488]
[1770134516750,0.0011,2302.0,2301.1,11.82793232]
[1770134517172,0.0011,2302.0,2301.2,0.911]
[1770134517481,0.0011,2302.0,2301.3,1.27389323]
[1770134517782,0.0011,2302.0,2300.9,0.911]
[1770134518246,0.0011,2302.0,2300.6,11.80719744]
[1770134518564,11.80709671,2301.9,2300.6,0.001]
[1770134518739,14.36514114,2301.8,2300.6,0.001]
[1770134518938,6.10717516,2301.6,2300.6,0.001]
[1770134519133,0.1024,2301.6,2300.6,0.001]
[1770134519341,13.43240626,2301.6,2300.4,0.001]
[1770134519752,6.10717516,2301.3,2300.1,0.001]
[1770134520333,1.0863897,2301.2,2300.1,0.001]
[1770134520663,1.0134,2301.1,2299.7,1.08709053]
[1770134520864,1.0134,2301.1,2299.4,0.001]
[1770134520865,17.91427187,2300.8,2299.4,0.001]
[1770134521042,0.12413488,2300.5,2299.4,0.001]
[1770134521248,0.911,2300.4,2299.4,1.08823848]